bitfinex-derivatives/quotes_BTCF0:USTF0_20250114
["timestamp","ask_amount","ask_price","bid_price","bid_amount"]
[1736862526580,0.3608,96713.0,96702.0,0.01]
[1736862526778,0.001,96705.0,96702.0,0.01]
[1736862527582,0.10273885,96712.0,96702.0,0.01]
[1736862527769,0.10273885,96712.0,96698.0,0.00155108]
[1736862528479,0.3608,96703.0,96698.0,0.00155108]
[1736862528878,0.051728,96702.0,96698.0,0.00155108]
[1736862529079,0.3608,96703.0,96698.0,0.00155108]
[1736862529284,0.3608,96703.0,96702.0,0.001]
[1736862529983,0.3608,96703.0,96698.0,0.00155108]
[1736862530171,0.051728,96702.0,96698.0,0.00155108]
[1736862531084,0.051728,96702.0,96683.0,0.3708]
[1736862531285,0.10273885,96700.0,96683.0,0.3708]
[1736862531493,0.15421464,96700.0,96683.0,0.3708]
[1736862531687,0.15421464,96700.0,96683.0,0.01]
[1736862532989,0.15521464,96700.0,96683.0,0.01]
[1736862533581,0.001,96700.0,96695.0,0.01]
[1736862533789,0.001,96700.0,96696.0,0.3289]
[1736862534777,0.052729,96700.0,96691.0,0.3608]
[1736862535181,0.052729,96700.0,96683.0,0.002]
[1736862535693,0.20694364,96700.0,96683.0,0.002]
[1736862537290,0.3608,96693.0,96683.0,0.002]
[1736862538882,0.3618,96693.0,96683.0,0.002]
[1736862539287,0.3618,96693.0,96692.0,0.01]
[1736862539685,0.3618,96693.0,96683.0,0.002]
[1736862540787,0.001,96693.0,96685.0,0.051737]
[1736862540993,0.24706919,96717.0,96708.0,0.01]
[1736862541190,0.24706919,96717.0,96709.0,0.3218]
[1736862541386,0.29878919,96717.0,96709.0,0.3218]
[1736862541593,0.3608,96710.0,96693.0,0.01]
[1736862541993,0.51501464,96710.0,96691.0,0.3146]
[1736862542188,0.3608,96702.0,96692.0,0.01]
[1736862542690,0.001,96693.0,96692.0,0.01]
[1736862543798,0.3608,96702.0,96692.0,0.01]
[1736862543990,0.3618,96702.0,96692.0,0.01]
[1736862544389,0.051729,96701.0,96691.0,0.3146]
[1736862544591,0.3618,96702.0,96691.0,0.3146]
[1736862544793,0.05995709,96701.0,96691.0,0.3146]
[1736862545090,0.05995709,96701.0,96692.0,0.01]
[1736862545491,0.05995709,96701.0,96692.0,0.012]
[1736862545993,0.001,96693.0,96692.0,0.013]
[1736862546395,0.001,96693.0,96692.0,0.011]
[1736862546590,0.05995709,96700.0,96692.0,0.011]
[1736862546786,0.001,96701.0,96692.0,0.011]
[1736862547199,0.001,96693.0,96692.0,0.011]
[1736862547395,0.001,96693.0,96692.0,0.001]
[1736862548093,0.06096318,96693.0,96692.0,0.001]
[1736862548794,0.05996318,96693.0,96680.0,0.16421464]
[1736862548991,0.05996318,96693.0,96692.0,0.002]
[1736862549494,0.06096318,96693.0,96692.0,0.002]
[1736862549690,0.06096318,96693.0,96692.0,0.001]
[1736862551498,0.07361593,96693.0,96692.0,0.001]
[1736862555688,0.01365275,96693.0,96692.0,0.001]
[1736862558209,0.07361347,96693.0,96692.0,0.001]
[1736862559400,0.14962985,96693.0,96692.0,0.001]
[1736862562709,0.07361347,96693.0,96692.0,0.001]
[1736862571412,0.051739,96681.0,96672.0,0.3098]
[1736862571719,0.412539,96681.0,96672.0,0.3098]
[1736862572010,0.3608,96681.0,96672.0,0.3098]
[1736862572216,0.3608,96681.0,96680.0,0.01]
[1736862572507,0.3608,96681.0,96672.0,0.3098]
[1736862572713,0.42638385,96681.0,96672.0,0.3108]
[1736862573013,0.06558385,96681.0,96672.0,0.3108]
[1736862573412,0.05174,96679.0,96672.0,0.3108]
[1736862573914,0.05174,96679.0,96672.0,0.3128]
[1736862574110,0.051743,96674.0,96672.0,0.3128]
[1736862574615,0.051743,96674.0,96672.0,0.003]
[1736862575516,0.13598467,96673.0,96672.0,0.003]
[1736862576717,0.13698467,96673.0,96672.0,0.003]
[1736862580611,0.06096072,96673.0,96672.0,0.003]
[1736862581714,0.001,96673.0,96672.0,0.003]
[1736862582919,0.06096072,96673.0,96672.0,0.003]
[1736862583311,0.06096072,96673.0,96672.0,0.001]
[1736862583516,0.05996072,96673.0,96672.0,0.001]
[1736862584115,0.06096072,96673.0,96661.0,0.1633]
[1736862584420,0.10280852,96671.0,96661.0,0.1633]
[1736862585323,0.001,96673.0,96671.0,0.01]
[1736862585620,0.01284385,96681.0,96671.0,0.01]
[1736862585825,0.001,96673.0,96671.0,0.01]
[1736862586025,0.10280852,96690.0,96671.0,0.01]
[1736862586214,0.25932734,96684.0,96671.0,0.01]
[1736862586412,0.10280852,96681.0,96671.0,0.01]
[1736862586611,0.051748,96665.0,96661.0,0.1633]
[1736862586817,0.412548,96665.0,96661.0,0.1633]
[1736862587621,0.412548,96665.0,96661.0,0.1643]
[1736862588020,0.05997868,96664.0,96661.0,0.1643]
[1736862588521,0.051749,96663.0,96661.0,0.001]
[1736862588921,0.051749,96663.0,96661.0,0.002]
[1736862589124,0.11172768,96663.0,96661.0,0.002]
[1736862589525,0.05997868,96663.0,96661.0,0.002]
[1736862589921,0.05997868,96664.0,96661.0,0.001]
[1736862590127,0.06097868,96664.0,96661.0,0.003]
[1736862590333,0.06097868,96664.0,96661.0,0.002]
[1736862590832,0.11272768,96663.0,96661.0,0.002]
[1736862592128,0.05997868,96662.0,96661.0,0.002]
[1736862592335,0.05997868,96662.0,96661.0,0.001]
[1736862593620,0.06097868,96662.0,96661.0,0.001]
[1736862595535,0.05175,96661.0,96646.0,0.4809]
[1736862595725,0.3608,96654.0,96646.0,0.4809]
[1736862596830,0.3608,96654.0,96646.0,0.4819]
[1736862597228,0.001,96661.0,96648.0,0.3608]
[1736862597434,0.001,96661.0,96650.0,0.10280852]
[1736862597628,0.001,96661.0,96648.0,0.3608]
[1736862598326,0.01240306,96661.0,96648.0,0.3608]
[1736862598530,0.001,96654.0,96648.0,0.3608]
[1736862599054,0.001,96661.0,96655.0,0.01]
[1736862599835,0.001,96661.0,96648.0,0.3638]
[1736862600033,0.001,96661.0,96648.0,0.3738]
[1736862600238,0.001,96654.0,96648.0,0.3668]
[1736862600435,0.001,96654.0,96648.0,0.3768]
[1736862600934,0.001,96654.0,96648.0,0.3638]
[1736862601137,0.001,96654.0,96652.0,0.01]
[1736862601738,0.0121657,96659.0,96652.0,0.01]
[1736862601936,0.001,96661.0,96655.0,0.006]
[1736862602332,0.10280852,96662.0,96647.0,0.3608]
[1736862602535,0.001,96654.0,96653.0,0.01]
[1736862603140,0.001,96661.0,96655.0,0.10880852]
[1736862604140,0.001,96661.0,96657.0,0.3608]
[1736862604940,0.01218871,96665.0,96657.0,0.3608]
[1736862605145,0.10280852,96670.0,96657.0,0.3608]
[1736862605341,0.10280852,96670.0,96655.0,0.001]
[1736862605643,0.001,96661.0,96657.0,0.005]
[1736862606346,0.05175,96660.0,96657.0,0.005]
[1736862606554,0.05175,96660.0,96657.0,0.006]
[1736862606735,0.05175,96660.0,96657.0,0.007]
[1736862607344,0.05175,96660.0,96657.0,0.006]
[1736862607548,0.05998369,96659.0,96657.0,0.007]
[1736862608147,0.001,96665.0,96658.0,0.01]
[1736862608350,0.001,96661.0,96658.0,0.01]
[1736862608657,0.01324021,96674.0,96658.0,0.01]
[1736862609749,0.001,96659.0,96658.0,0.01]
[1736862609947,0.01324021,96674.0,96658.0,0.01]
[1736862610244,0.01324021,96674.0,96673.0,0.3608]
[1736862611145,0.00155241,96674.0,96673.0,0.3608]
[1736862611347,0.00255241,96674.0,96673.0,0.3608]
[1736862611646,0.00355241,96674.0,96673.0,0.3608]
[1736862611955,0.00255241,96674.0,96673.0,0.3618]
[1736862612546,0.00255241,96674.0,96673.0,0.002]
[1736862612940,0.00255241,96674.0,96659.0,0.01]
[1736862613137,0.10280852,96669.0,96659.0,0.01]
[1736862613338,0.051746,96668.0,96656.0,0.3258]
[1736862614149,0.051746,96668.0,96659.0,0.001]
[1736862614746,0.051746,96668.0,96656.0,0.3258]
[1736862614948,0.051746,96668.0,96656.0,0.3278]
[1736862615254,0.051746,96668.0,96659.0,0.005]
[1736862615450,0.3608,96670.0,96659.0,0.005]
[1736862615652,0.46360852,96670.0,96659.0,0.005]
[1736862615856,0.46360852,96670.0,96656.0,0.3278]
[1736862615857,0.051747,96667.0,96656.0,0.007]
[1736862616153,0.05175,96661.0,96656.0,0.007]
[1736862616550,0.05175,96661.0,96656.0,0.005]
[1736862616551,0.37645,96661.0,96656.0,0.005]
[1736862616861,0.37645,96661.0,96659.0,0.001]
[1736862617051,0.37645,96661.0,96644.0,0.01]
[1736862617251,0.10280852,96654.0,96644.0,0.01]
[1736862617456,0.051751,96659.0,96644.0,0.01]
[1736862618157,0.07604107,96660.0,96644.0,0.015]
[1736862618359,0.05998448,96658.0,96644.0,0.017]
[1736862618555,0.05998448,96658.0,96648.0,0.10280852]
[1736862618755,0.05998448,96658.0,96644.0,0.012]
[1736862618955,0.05998448,96658.0,96644.0,0.017]
[1736862619159,0.05998448,96657.0,96648.0,0.10280852]
[1736862619850,0.05998448,96657.0,96656.0,0.01]
[1736862620364,0.001,96658.0,96656.0,0.01]
[1736862621668,0.0117155,96660.0,96656.0,0.01]
[1736862621872,0.001,96658.0,96656.0,0.01]
[1736862622971,0.001,96660.0,96656.0,0.01]
[1736862623766,0.001,96660.0,96652.0,0.3608]
[1736862623964,0.001,96660.0,96656.0,0.001]
[1736862624167,0.051751,96659.0,96656.0,0.001]
[1736862624562,0.1783,96661.0,96656.0,0.001]
[1736862624563,0.051752,96657.0,96656.0,0.001]
[1736862624762,0.051755,96651.0,96642.0,0.18266638]
[1736862624966,0.051755,96651.0,96641.0,0.69856]
[1736862625167,0.05176,96643.0,96626.0,0.17075241]
[1736862625366,0.10280852,96636.0,96626.0,0.00155241]
[1736862625566,0.46360852,96636.0,96626.0,0.00155241]
[1736862627466,0.46360852,96636.0,96626.0,0.00555241]
[1736862628172,0.46460852,96636.0,96626.0,0.00555241]
[1736862628375,0.051764,96635.0,96626.0,0.00555241]
[1736862628967,0.3608,96627.0,96626.0,0.00555241]
[1736862630266,0.47622968,96636.0,96626.0,0.00555241]
[1736862630472,0.47622968,96636.0,96629.0,0.3608]
[1736862630473,0.001,96636.0,96629.0,0.3608]
[1736862630774,0.3608,96647.0,96645.0,0.01]
[1736862630976,0.3608,96647.0,96646.0,0.3273]
[1736862631870,0.01203154,96659.0,96646.0,0.6881]
[1736862632071,0.3608,96669.0,96649.0,0.10280852]
[1736862632574,0.3608,96669.0,96657.0,0.01]
[1736862634473,0.3618,96669.0,96657.0,0.01]
[1736862634668,0.3618,96669.0,96657.0,0.3708]
[1736862634868,0.3618,96669.0,96668.0,0.01]
[1736862635070,0.002,96669.0,96668.0,0.01]
[1736862635674,0.001,96669.0,96668.0,0.01]
[1736862636464,0.001,96669.0,96668.0,0.061746]
[1736862636665,0.3608,96688.0,96686.0,0.01]
[1736862638670,0.3658,96688.0,96686.0,0.01]
[1736862639270,0.3698,96688.0,96686.0,0.01]
[1736862640171,0.3668,96688.0,96686.0,0.01]
[1736862640373,0.3668,96688.0,96672.0,0.01]
[1736862640580,0.3608,96678.0,96659.0,0.3484]
[1736862640780,0.10280852,96669.0,96662.0,0.01]
[1736862640978,0.10280852,96669.0,96659.0,0.3484]
[1736862641279,0.10280852,96669.0,96662.0,0.01]
[1736862642277,0.10380852,96669.0,96662.0,0.014]
[1736862643377,0.10380852,96669.0,96662.0,0.016]
[1736862643766,0.10280852,96669.0,96662.0,0.012]
[1736862644077,0.10380852,96669.0,96662.0,0.015]
[1736862646671,0.10380852,96669.0,96662.0,0.002]
[1736862646873,0.10380852,96669.0,96662.0,0.005]
[1736862647385,0.001,96669.0,96662.0,0.004]
[1736862648677,0.10280852,96672.0,96666.0,0.3608]
[1736862648883,0.1727,96696.0,96670.0,0.01]
[1736862649079,0.24706919,96697.0,96681.0,0.01]
[1736862649380,0.46360852,96691.0,96681.0,0.01]
[1736862649883,0.3608,96691.0,96682.0,0.051739]
[1736862650075,0.24706919,96699.0,96698.0,0.01]
[1736862650581,0.3608,96700.0,96698.0,0.01]
[1736862651175,0.3608,96700.0,96687.0,0.01]
[1736862651375,0.51503073,96700.0,96687.0,0.01]
[1736862652182,0.52103073,96700.0,96687.0,0.01]
[1736862653584,0.52103073,96700.0,96687.0,0.011]
[1736862653779,0.3608,96691.0,96687.0,0.006]
[1736862654571,0.412534,96691.0,96673.0,0.3608]
[1736862654879,0.412534,96691.0,96663.0,0.01]
[1736862654880,0.3608,96681.0,96663.0,0.01]
[1736862655086,0.15423073,96673.0,96663.0,0.01]
[1736862655780,0.15423073,96680.0,96663.0,0.01]
[1736862656179,0.37244977,96681.0,96663.0,0.01]
[1736862656376,0.3608,96681.0,96673.0,0.01]
[1736862656683,0.3618,96691.0,96674.0,0.051743]
[1736862656883,0.37306531,96691.0,96675.0,0.3608]
[1736862657181,0.37306531,96691.0,96683.0,0.01]
[1736862657385,0.37206531,96691.0,96684.0,0.5328]
[1736862657581,0.37206531,96691.0,96684.0,0.6977]
[1736862657778,0.3608,96691.0,96684.0,0.6977]
[1736862658082,0.3618,96691.0,96684.0,0.6977]
[1736862658281,0.001,96691.0,96685.0,0.052737]
[1736862658487,0.3608,96703.0,96701.0,0.01]
[1736862659879,0.01161349,96719.0,96701.0,0.01]
[1736862660381,0.002,96703.0,96702.0,0.1627]
[1736862660778,0.002,96703.0,96700.0,0.3608]
[1736862661085,0.001,96703.0,96700.0,0.3608]
[1736862661384,0.00355169,96708.0,96700.0,0.3608]
[1736862661690,0.00355169,96708.0,96707.0,0.01]
[1736862662787,0.00155169,96708.0,96707.0,0.01]
[1736862663688,0.00355169,96708.0,96707.0,0.01]
[1736862664584,0.00655169,96708.0,96707.0,0.01]
[1736862666890,0.3608,96721.0,96720.0,0.01]
[1736862667384,0.3608,96734.0,96731.0,0.01]
[1736862668789,0.3638,96734.0,96731.0,0.01]
[1736862668986,0.3638,96734.0,96720.0,0.01]
[1736862669192,0.005,96721.0,96720.0,0.01]
[1736862669879,0.15423073,96730.0,96720.0,0.01]
[1736862670190,0.3485,96733.0,96720.0,0.01]
[1736862670386,0.3608,96722.0,96720.0,0.01]
[1736862670581,0.3608,96726.0,96711.0,0.01155096]
[1736862670788,0.15423073,96721.0,96711.0,0.01155096]
[1736862670990,0.3608,96718.0,96711.0,0.01155096]
[1736862671783,0.3608,96718.0,96711.0,0.00155096]
[1736862671978,0.05172,96717.0,96711.0,0.00855096]
[1736862672183,0.05172,96717.0,96675.0,0.3608]
[1736862672184,0.051725,96708.0,96686.0,0.01]
[1736862672379,0.3608,96687.0,96677.0,0.01]
[1736862672584,0.3608,96687.0,96676.0,0.01]
[1736862673178,0.3608,96687.0,96668.0,0.3608]
[1736862673382,0.15423073,96680.0,96668.0,0.01]
[1736862673592,0.3608,96679.0,96663.0,0.3559]
[1736862673783,0.3608,96679.0,96677.0,0.004]
[1736862674885,0.3618,96679.0,96677.0,0.004]
[1736862675286,0.3608,96679.0,96677.0,0.004]
[1736862675590,0.3618,96679.0,96671.0,0.01]
[1736862676487,0.3618,96679.0,96677.0,0.001]
[1736862677195,0.37289409,96679.0,96671.0,0.002]
[1736862677395,0.3436,96678.0,96671.0,0.002]
[1736862678695,0.3446,96678.0,96671.0,0.002]
[1736862678897,0.3446,96678.0,96677.0,0.001]
[1736862679691,0.3446,96678.0,96671.0,0.002]
[1736862680595,0.3446,96678.0,96677.0,0.001]
[1736862680789,0.3446,96678.0,96649.0,0.3484]
[1736862680790,1.0054,96678.0,96654.0,0.01]
[1736862680992,0.051754,96655.0,96622.0,0.3374]
[1736862681187,0.15423073,96638.0,96622.0,0.3374]
[1736862681799,0.15423073,96638.0,96622.0,0.6982]
[1736862682103,0.3608,96627.0,96610.0,0.3608]
[1736862682298,0.15423073,96620.0,96610.0,0.3608]
[1736862682499,0.3608,96627.0,96610.0,0.3608]
[1736862682999,0.15423073,96620.0,96610.0,0.3608]
[1736862683898,0.15423073,96620.0,96610.0,0.3648]
[1736862684799,0.16555483,96620.0,96610.0,0.3648]
[1736862684998,0.001,96620.0,96610.0,0.3648]
[1736862685393,0.3608,96614.0,96603.0,0.3404]
[1736862685589,0.3608,96614.0,96602.0,0.00155266]
[1736862685590,0.15423073,96613.0,96610.0,0.004]
[1736862685796,0.412576,96612.0,96602.0,0.00155266]
[1736862685996,0.3608,96603.0,96602.0,0.00155266]
[1736862686197,0.3608,96603.0,96554.0,0.3608]
[1736862686492,0.51503073,96580.0,96555.0,0.1743]
[1736862686694,0.51503073,96580.0,96555.0,0.3473]
[1736862687295,0.15423073,96570.0,96555.0,0.3463]
[1736862687505,0.51503073,96580.0,96555.0,0.3463]
[1736862687711,0.15423073,96570.0,96555.0,0.3463]
[1736862688800,0.15523073,96570.0,96559.0,0.3608]
[1736862689194,0.001,96570.0,96559.0,0.3608]
[1736862689702,0.002,96570.0,96567.0,0.3608]
[1736862689909,0.3608,96587.0,96567.0,0.3608]
[1736862690204,0.3608,96587.0,96575.0,0.3608]
[1736862691407,0.1657225,96600.0,96584.0,0.3608]
[1736862691608,0.15423073,96600.0,96575.0,0.3608]
[1736862691996,0.3608,96610.0,96594.0,0.3608]
[1736862692604,0.3608,96610.0,96595.0,0.1752]
[1736862692811,0.001,96596.0,96595.0,0.1752]
[1736862694810,0.001,96596.0,96594.0,0.3608]
[1736862695106,0.3608,96595.0,96594.0,0.002]
[1736862695606,0.3608,96595.0,96577.0,0.1736]
[1736862695815,0.15423073,96590.0,96578.0,0.05059869]
[1736862696105,0.15423073,96590.0,96577.0,0.1736]
[1736862696306,0.3608,96587.0,96577.0,0.1736]
[1736862696700,0.3608,96587.0,96574.0,0.00155313]
[1736862696901,0.3608,96579.0,96574.0,0.00155313]
[1736862697308,0.3608,96579.0,96578.0,0.004]
[1736862697906,0.35907716,96579.0,96578.0,0.004]
[1736862698708,0.36007716,96579.0,96578.0,0.005]
[1736862699011,0.36007716,96579.0,96578.0,0.001]
[1736862700011,0.36007716,96579.0,96578.0,0.004]
[1736862700206,0.36007716,96579.0,96554.0,0.1728]
[1736862700406,0.3608,96567.0,96554.0,0.1728]
[1736862701109,0.3608,96559.0,96554.0,0.1728]
[1736862701309,0.3608,96559.0,96554.0,0.1738]
[1736862701908,0.3608,96567.0,96554.0,0.1728]
[1736862702103,0.3618,96567.0,96554.0,0.1738]
[1736862702312,0.3618,96567.0,96554.0,0.1808]
[1736862702512,0.3608,96567.0,96554.0,0.1798]
[1736862702811,0.001,96559.0,96554.0,0.1808]
[1736862703209,0.01133804,96584.0,96555.0,0.3618]
[1736862703414,0.3608,96589.0,96572.0,0.3608]
[1736862704815,0.15423073,96582.0,96572.0,0.3608]
[1736862705015,0.3608,96577.0,96564.0,0.3608]
[1736862705418,0.3618,96589.0,96564.0,0.3608]
[1736862705718,0.3618,96589.0,96572.0,0.3618]
[1736862706103,0.001,96582.0,96572.0,0.3618]
[1736862706303,0.001,96582.0,96572.0,0.3608]
[1736862706615,0.3608,96580.0,96564.0,0.3628]
[1736862706910,0.3608,96572.0,96564.0,0.3638]
[1736862707115,0.3608,96572.0,96564.0,0.003]
[1736862708110,0.20530607,96572.0,96564.0,0.003]
[1736862708318,0.20530607,96572.0,96564.0,0.18536273]
[1736862708914,0.20630607,96572.0,96564.0,0.18636273]
[1736862709114,0.20630607,96572.0,96564.0,0.18436273]
[1736862709911,0.20630607,96572.0,96564.0,0.001]
[1736862710115,0.20630607,96572.0,96564.0,0.003]
[1736862711825,0.21718591,96572.0,96564.0,0.003]
[1736862714717,0.412584,96598.0,96571.0,0.3608]
[1736862715021,0.051784,96598.0,96584.0,0.3608]
[1736862715422,0.051784,96598.0,96572.0,0.1769]
[1736862715623,0.15423073,96590.0,96572.0,0.1769]
[1736862715819,0.412584,96598.0,96572.0,0.1769]
[1736862715820,0.15423073,96582.0,96572.0,0.1769]
[1736862716618,0.15423073,96582.0,96572.0,0.1779]
[1736862717321,0.3608,96573.0,96572.0,0.001]
[1736862717725,0.3608,96573.0,96550.0,0.60528364]
[1736862717925,0.3608,96560.0,96550.0,0.36144]
[1736862718129,0.3608,96560.0,96550.0,0.3608]
[1736862719024,0.3618,96560.0,96550.0,0.3628]
[1736862719621,0.3618,96560.0,96550.0,0.002]
[1736862719825,0.001,96560.0,96550.0,0.002]
[1736862720030,0.001,96560.0,96550.0,0.15623073]
[1736862720324,0.001,96560.0,96555.0,0.3608]
[1736862722935,0.3608,96593.0,96559.0,0.3608]
[1736862723131,0.01118486,96587.0,96573.0,0.3608]
[1736862723422,0.15423073,96583.0,96574.0,0.3429]
[1736862723621,0.15423073,96583.0,96559.0,0.3608]
[1736862723622,0.051793,96581.0,96559.0,0.3608]
[1736862723830,0.0518,96568.0,96555.0,0.004]
[1736862724021,0.0518,96568.0,96552.0,0.3608]
[1736862724220,0.15423073,96563.0,96559.0,0.003]
[1736862724421,0.3608,96560.0,96539.0,0.3429]
[1736862724621,0.51503073,96550.0,96539.0,0.3429]
[1736862724824,0.05181,96549.0,96522.0,0.3608]
[1736862725027,0.05181,96549.0,96523.0,0.3411]
[1736862725229,0.06279206,96549.0,96523.0,0.3411]
[1736862725528,0.051815,96541.0,96539.0,0.002]
[1736862725829,0.3608,96540.0,96523.0,0.3411]
[1736862726024,0.3608,96529.0,96519.0,0.18336273]
[1736862726225,0.3608,96529.0,96508.0,0.3411]
[1736862726425,0.3608,96529.0,96514.0,0.3608]
[1736862727025,0.3608,96529.0,96523.0,0.002]
[1736862727823,0.3608,96529.0,96514.0,0.3628]
[1736862728024,0.3608,96529.0,96519.0,0.15423073]
[1736862728430,0.3608,96529.0,96514.0,0.3628]
[1736862728929,0.001,96541.0,96528.0,0.3608]
[1736862729233,0.3608,96565.0,96536.0,0.3608]
[1736862729427,0.00155401,96570.0,96548.0,0.7216]
[1736862729624,0.00155401,96570.0,96560.0,0.3608]
[1736862730430,0.40386962,96589.0,96560.0,0.81603073]
[1736862730732,0.27848531,96579.0,96578.0,0.3608]
[1736862731230,0.1631,96610.0,96578.0,0.3618]
[1736862731231,0.3608,96601.0,96578.0,0.3618]
[1736862731425,0.3608,96596.0,96578.0,0.3618]
[1736862731629,0.15423073,96590.0,96578.0,0.3608]
[1736862732533,0.051789,96589.0,96567.0,0.3608]
[1736862732741,0.15423073,96580.0,96567.0,0.3608]
[1736862733230,0.004,96579.0,96567.0,0.3608]
[1736862734027,0.412593,96581.0,96567.0,0.3618]
[1736862734427,0.3608,96581.0,96567.0,0.3618]
[1736862735733,0.001,96580.0,96567.0,0.3618]
[1736862736231,0.3618,96581.0,96567.0,0.3618]
[1736862736433,0.3618,96581.0,96567.0,0.3608]
[1736862736730,0.3618,96581.0,96567.0,0.3618]
[1736862736939,0.001,96580.0,96567.0,0.3618]
[1736862737538,0.3618,96581.0,96567.0,0.3618]
[1736862738126,0.3618,96581.0,96567.0,0.001]
[1736862738333,0.15423073,96580.0,96567.0,0.001]
[1736862738643,0.051794,96579.0,96567.0,0.001]
[1736862739837,0.3608,96570.0,96567.0,0.001]
[1736862740632,0.3608,96570.0,96557.0,0.3608]
[1736862740831,0.51503073,96570.0,96557.0,0.3608]
[1736862741431,0.3608,96570.0,96557.0,0.3608]
[1736862742543,0.3618,96570.0,96557.0,0.3608]
[1736862742737,0.3618,96570.0,96545.0,0.1631]
[1736862742738,0.51603073,96570.0,96545.0,0.1631]
[1736862743047,0.051803,96561.0,96558.0,0.002]
[1736862743240,0.05181,96549.0,96532.0,0.18336273]
[1736862743540,0.3515,96560.0,96528.0,0.00155372]
[1736862743541,0.051814,96541.0,96528.0,0.00155372]
[1736862744138,0.051815,96539.0,96528.0,0.00155372]
[1736862744536,0.3608,96529.0,96528.0,0.00155372]
[1736862746145,0.3608,96529.0,96528.0,0.00255372]
[1736862746847,0.3618,96529.0,96528.0,0.00155372]
[1736862749435,0.413621,96529.0,96510.0,0.1647]
[1736862749641,0.3608,96513.0,96501.0,0.18336273]
[1736862749939,0.3608,96503.0,96501.0,0.18336273]
[1736862750144,0.3608,96503.0,96487.0,0.3374]
[1736862751036,0.3608,96503.0,96501.0,0.002]
[1736862751242,0.3618,96503.0,96501.0,0.002]
[1736862751451,0.3425,96502.0,96501.0,0.002]
[1736862751650,0.3425,96502.0,96482.0,0.00155442]
[1736862751845,0.3608,96494.0,96482.0,0.00155442]
[1736862752248,0.15423073,96492.0,96482.0,0.00155442]
[1736862752649,0.15413297,96492.0,96482.0,0.00155442]
[1736862753942,0.15513297,96492.0,96482.0,0.00155442]
[1736862754138,0.15613297,96492.0,96482.0,0.00755442]
[1736862755549,0.002,96492.0,96482.0,0.00755442]
[1736862755758,0.15623073,96492.0,96482.0,0.00755442]
[1736862755953,0.002,96492.0,96482.0,0.00755442]
[1736862756255,0.002,96492.0,96484.0,0.3608]
[1736862756648,0.002,96492.0,96485.0,0.001]
[1736862757047,0.3608,96515.0,96486.0,0.051844]
[1736862757258,0.3608,96515.0,96485.0,0.36244]
[1736862757259,0.15423073,96500.0,96485.0,0.36244]
[1736862757551,0.001,96492.0,96487.0,0.001]
[1736862757752,0.001,96492.0,96482.0,0.00155442]
[1736862758057,0.001,96492.0,96482.0,0.00555442]
[1736862759556,0.15423073,96497.0,96485.0,0.001]
[1736862759749,0.3608,96490.0,96485.0,0.001]
[1736862760149,0.051842,96489.0,96487.0,0.003]
[1736862760961,0.051842,96489.0,96485.0,0.004]
[1736862761151,0.051842,96489.0,96466.0,0.1732]
[1736862761350,0.51503073,96476.0,96466.0,0.1732]
[1736862761753,0.15423073,96476.0,96466.0,0.1732]
[1736862762661,0.15423073,96480.0,96466.0,0.1732]
[1736862763155,0.005,96489.0,96474.0,0.3608]
[1736862763360,0.005,96489.0,96475.0,0.174]
[1736862763657,0.36235514,96496.0,96484.0,0.3608]
[1736862764154,0.36235514,96496.0,96483.0,0.3608]
[1736862764361,0.00155514,96496.0,96494.0,0.3608]
[1736862764753,0.00155514,96496.0,96483.0,0.3608]
[1736862764959,0.15423073,96493.0,96483.0,0.3608]
[1736862765256,0.3608,96492.0,96483.0,0.3608]
[1736862766860,0.3618,96492.0,96483.0,0.3608]
[1736862767064,0.3648,96492.0,96483.0,0.3608]
[1736862767258,0.004,96492.0,96491.0,0.3608]
[1736862769079,0.00155514,96496.0,96491.0,0.3608]
[1736862769376,0.004,96492.0,96491.0,0.3608]
[1736862769975,0.004,96492.0,96483.0,0.3608]
[1736862770174,0.15423073,96493.0,96483.0,0.3608]
[1736862770479,0.008,96496.0,96483.0,0.3608]
[1736862770776,0.15423073,96493.0,96483.0,0.3608]
[1736862770978,0.004,96492.0,96483.0,0.3608]
[1736862772364,0.006,96492.0,96483.0,0.3608]
[1736862772567,0.3608,96484.0,96471.0,0.18336273]
[1736862772764,0.3608,96475.0,96471.0,0.18336273]
[1736862772968,0.3608,96475.0,96472.0,0.24448364]
[1736862773968,0.3618,96475.0,96472.0,0.24448364]
[1736862774169,0.3618,96475.0,96471.0,0.001]
[1736862774375,0.001,96475.0,96471.0,0.001]
[1736862774679,0.001,96475.0,96472.0,0.001]
[1736862776179,0.001,96475.0,96464.0,0.18468837]
[1736862776180,0.05185,96474.0,96464.0,0.18468837]
[1736862776378,0.05185,96474.0,96464.0,0.04082712]
[1736862776379,0.3608,96465.0,96464.0,0.04082712]
[1736862777180,0.3608,96465.0,96453.0,0.3608]
[1736862777380,0.3608,96465.0,96464.0,0.002]
[1736862777780,0.3618,96465.0,96464.0,0.002]
[1736862778384,0.3628,96465.0,96464.0,0.002]
[1736862778678,0.05186,96456.0,96450.0,0.24448364]
[1736862778879,0.3608,96451.0,96450.0,0.24448364]
[1736862779481,0.05186,96456.0,96440.0,0.3608]
[1736862779787,0.05186,96456.0,96450.0,0.003]
[1736862780286,0.001,96451.0,96450.0,0.003]
[1736862780482,0.001,96451.0,96440.0,0.3608]